bitfinex-derivatives/quotes_ETHF0:USTF0_20260117
["timestamp","ask_amount","ask_price","bid_price","bid_amount"]
[1768664904491,2.10271031,3326.3,3324.5,0.00321206]
[1768664904681,2.10271031,3326.1,3324.5,0.00321206]
[1768664904881,1.30945601,3326.0,3324.5,0.00321206]
[1768664905083,1.02097451,3325.9,3324.5,0.00321206]
[1768664905284,2.10271031,3326.1,3324.5,0.00321206]
[1768664905591,3.4122624,3326.0,3324.5,0.00321206]
[1768664905891,1.02106689,3325.9,3324.5,0.00321206]
[1768664907292,3.1237772,3325.9,3324.5,0.00321206]
[1768664907596,2.10271031,3325.9,3324.5,0.00321206]
[1768664917003,1.0212365,3325.8,3324.5,0.00321206]
[1768664917193,2.05355701,3325.7,3324.5,0.00321206]
[1768664921904,2.05355701,3325.5,3324.5,0.00321206]
[1768664939324,0.96582713,3325.2,3324.5,0.00321206]
[1768664943030,2.09543475,3324.9,3324.5,0.00321206]
[1768664943229,2.0980338,3324.9,3324.5,0.00321206]
[1768664943429,0.00259905,3324.9,3324.5,0.00321206]
[1768664948936,3.06386093,3324.9,3324.5,0.00321206]
[1768664949142,2.0980338,3324.9,3324.2,0.15046]
[1768664949439,3.06386093,3324.9,3324.2,0.15046]
[1768664950039,3.06386093,3324.9,3324.2,0.15314107]
[1768664950239,0.00259905,3324.9,3324.2,0.15314107]
[1768664954345,0.96582713,3324.7,3324.1,4.643]
[1768664954844,0.96582713,3324.7,3324.0,40.8]
[1768664955047,0.96582713,3324.5,3324.0,40.8]
[1768664955344,0.96582713,3324.5,3324.0,0.00310379]
[1768664956346,0.96582713,3324.3,3323.6,4.646]
[1768664956645,0.96582713,3324.3,3323.7,40.8]
[1768664957236,0.96582713,3324.3,3323.7,0.00267787]
[1768664963351,3.06126188,3324.8,3323.7,0.00267787]
[1768664964946,0.96582713,3324.6,3323.7,0.00267787]
[1768664966262,2.09543475,3324.8,3323.7,0.00267787]
[1768664966549,0.96582713,3325.6,3324.3,0.96582713]
[1768664966752,0.96582713,3325.6,3324.4,4.66]
[1768664967445,0.96896859,3325.6,3324.4,4.66]
[1768664967750,0.00314146,3325.6,3324.4,4.81045]
[1768664967952,0.96896859,3325.6,3324.4,4.81045]
[1768664969259,0.00314146,3325.6,3324.5,0.96582713]
[1768664969843,0.00314146,3325.6,3324.4,4.81045]
[1768664970847,0.96896859,3325.6,3324.4,4.81045]
[1768664971457,0.96582713,3325.5,3324.4,4.81045]
[1768664971758,0.00314146,3325.6,3324.5,0.15045]
[1768664973356,0.96896859,3325.6,3324.5,0.15045]
[1768664975464,0.96896859,3325.6,3324.7,0.15044]
[1768664982062,0.00314146,3325.6,3324.7,0.15044]
[1768664982271,0.96582713,3325.5,3324.7,0.15044]
[1768664983667,0.00314146,3325.6,3324.7,0.15044]
[1768664983868,0.96582713,3325.5,3324.7,0.15044]
[1768664986864,0.00314146,3325.6,3324.7,0.15044]
[1768664987171,0.96896859,3325.6,3324.7,0.15044]
[1768664987469,0.96896859,3325.6,3324.8,40.8]
[1768664988064,0.96582713,3325.4,3324.8,40.8]
[1768664988264,0.96582713,3325.4,3324.7,0.15044]
[1768664988665,0.96582713,3325.5,3324.7,0.15044]
[1768664991771,1.46e-06,3325.6,3324.8,0.96582713]
[1768664992287,0.96582713,3326.4,3325.0,0.96582713]
[1768664992577,2.90326901,3326.4,3325.3,0.15041]
[1768664993378,2.90565823,3326.4,3325.3,0.15041]
[1768664997275,0.00238922,3326.4,3326.1,0.96582713]
[1768664997472,1.93744188,3327.7,3326.1,0.00375851]
[1768664997671,1.93744188,3327.7,3326.8,0.15034]
[1768664997862,0.96582713,3327.6,3326.8,0.15034]
[1768664998070,2.90326901,3327.6,3326.8,0.15034]
[1768664998279,2.90326901,3327.3,3326.8,0.15034]
[1768664998473,2.90598786,3327.3,3326.8,0.15034]
[1768664999269,1.94016073,3327.3,3326.8,0.15034]
[1768664999676,1.61004073,3327.3,3326.8,0.15034]
[1768665001168,1.61004073,3327.3,3326.2,45.432]
[1768665001169,1.61004073,3327.3,3326.2,40.8]
[1768665001374,0.96458544,3327.0,3326.1,0.00375851]
[1768665001771,1.93744188,3326.9,3325.4,0.1504]
[1768665002670,1.93744188,3326.9,3325.4,0.15388437]
[1768665002869,1.93744188,3326.9,3325.5,0.1504]
[1768665003069,1.93744188,3326.9,3325.6,0.1504]
[1768665003269,1.93744188,3326.9,3325.7,0.15039]
[1768665006777,2.90202732,3326.5,3325.4,0.00348437]
[1768665006984,1.93744188,3326.4,3325.4,0.00348437]
[1768665008282,1.93744188,3326.4,3325.0,0.15042]
[1768665009181,1.93744188,3326.4,3325.0,0.15313135]
[1768665014580,1.93744188,3326.4,3325.1,0.15042]
[1768665015890,1.93744188,3326.4,3325.2,0.15041]
[1768665017483,1.93744188,3326.4,3325.3,0.15041]
[1768665024692,0.96458544,3326.3,3325.3,0.15041]
[1768665024886,2.14846126,3326.2,3325.3,0.15041]
[1768665025997,6.397,3326.9,3325.3,0.15041]
[1768665025998,2.14846126,3326.8,3325.3,0.15041]
[1768665026297,2.14846126,3326.8,3325.2,0.96458544]
[1768665026696,2.14846126,3326.8,3325.5,0.1504]
[1768665027087,2.14846126,3326.7,3325.5,0.1504]
[1768665029394,2.14846126,3326.3,3325.0,0.00271135]
[1768665029792,2.14846126,3326.3,3325.0,0.15313135]
[1768665038202,0.96458544,3326.1,3325.0,0.15313135]
[1768665038408,2.10866936,3326.0,3325.0,0.15313135]
[1768665041914,2.10866936,3326.0,3325.0,0.00271135]
[1768665058338,2.10866936,3326.0,3324.4,0.15045]
[1768665059233,2.10866936,3326.0,3324.4,0.15412711]
[1768665061440,0.96564153,3325.6,3324.4,0.15412711]
[1768665061644,2.97353208,3325.6,3324.4,0.15412711]
[1768665064344,2.97353208,3325.6,3324.5,40.8]
[1768665064535,0.96564153,3325.4,3324.5,40.8]
[1768665064731,0.96564153,3325.0,3324.5,40.8]
[1768665064936,0.96564153,3325.0,3324.4,0.00367711]
[1768665067747,0.96564153,3324.8,3323.9,40.8]
[1768665067944,0.96564153,3324.8,3323.7,0.15048]
[1768665068649,0.9692598,3324.8,3323.8,40.8]
[1768665069053,2.97715035,3324.8,3323.8,40.8]
[1768665069251,2.01150882,3324.8,3323.8,40.8]
[1768665069455,0.00361827,3324.8,3323.8,41.76564153]
[1768665069952,0.96564153,3324.4,3323.7,0.15389606]
[1768665070151,2.97715035,3324.8,3323.7,0.15389606]
[1768665070953,0.96564153,3324.3,3323.7,0.00341606]
[1768665071458,0.96564153,3324.5,3323.7,0.00341606]
[1768665072462,0.96564153,3324.2,3323.7,0.00341606]
[1768665073153,0.96564153,3324.2,3323.1,40.8]
[1768665073154,0.96564153,3323.8,3323.1,40.8]
[1768665073553,0.96564153,3323.8,3323.0,0.15051]
[1768665073949,0.96564153,3323.6,3323.0,40.8]
[1768665074149,0.96564153,3323.6,3323.0,0.00370499]
[1768665074452,2.01150882,3324.8,3323.5,0.96564153]
[1768665074644,0.96564153,3324.7,3323.4,0.15049]
[1768665074841,2.97353208,3324.7,3323.4,0.15049]
[1768665076054,2.97353208,3324.7,3323.4,1.11613153]
[1768665077753,2.00789055,3324.7,3323.4,0.15049]
[1768665077958,2.00789055,3324.7,3323.4,1.11613153]
[1768665080263,2.00789055,3324.7,3323.4,0.15049]
[1768665080459,2.00789055,3324.7,3323.4,1.11613153]
[1768665081062,2.00789055,3324.7,3323.4,0.15049]
[1768665081860,0.96564153,3324.6,3323.4,0.15049]
[1768665082359,3.01408101,3324.6,3323.4,0.15049]
[1768665082560,0.96564153,3324.4,3323.4,0.15049]
[1768665082855,2.04843948,3324.6,3323.4,0.15049]
[1768665083063,2.04843948,3324.6,3323.4,1.11613153]
[1768665089263,3.01408101,3324.6,3323.4,0.15049]
[1768665089466,0.96564153,3323.7,3323.0,0.00370499]
[1768665089769,0.96564153,3323.9,3323.0,0.00370499]
[1768665090965,2.04843948,3324.0,3323.0,0.00370499]
[1768665093174,2.10488111,3323.9,3323.0,0.00370499]
[1768665097167,3.07052264,3324.3,3323.0,0.00370499]
[1768665097577,2.10488111,3324.2,3323.0,0.00370499]
[1768665097773,0.00361827,3324.8,3323.9,0.96564153]
[1768665097977,0.96564153,3324.7,3323.7,0.15048]
[1768665098169,0.96564153,3324.5,3323.7,0.15048]
[1768665098601,2.10488111,3324.7,3323.7,0.15048]
[1768665104077,0.96564153,3324.5,3323.7,0.15048]
[1768665105085,3.07052264,3324.5,3323.7,0.15048]
[1768665112189,0.96564153,3324.3,3323.7,0.15048]
[1768665112491,0.96564153,3324.1,3323.0,0.15421499]
[1768665113895,2.22873743,3324.2,3323.1,0.15051]
[1768665116090,0.96564153,3324.1,3323.1,0.15051]
[1768665116587,2.22873743,3324.0,3323.1,0.15051]
[1768665121596,2.2323557,3324.8,3323.7,1.11612153]
[1768665121791,3.19799723,3324.8,3323.7,0.15048]
[1768665122092,2.22873743,3324.7,3323.7,0.15048]
[1768665122990,0.00361827,3324.8,3324.3,0.96564153]
[1768665123184,0.00361827,3324.8,3324.1,0.96564153]
[1768665123385,0.00361827,3324.8,3323.5,0.96575302]
[1768665123597,0.00361827,3324.8,3323.6,40.8]
[1768665124295,2.22873743,3325.9,3323.9,0.96575302]
[1768665124480,2.22873743,3325.9,3323.9,3.07390742]
[1768665125294,2.23243975,3325.9,3323.9,3.07390742]
[1768665125493,2.23243975,3325.9,3324.0,0.96575302]
[1768665125691,2.23243975,3325.9,3324.5,0.15045]
[1768665126892,2.23243975,3325.9,3324.6,0.15044]
[1768665128998,2.23243975,3325.9,3324.7,40.8]
[1768665135002,2.23243975,3325.9,3324.6,0.15044]
[1768665135401,2.23243975,3325.9,3324.6,40.95044]
[1768665135893,2.23243975,3325.9,3324.6,45.59644]
[1768665136291,2.23243975,3325.9,3324.6,40.95044]
[1768665136609,2.22873743,3325.5,3324.6,0.15044]
[1768665136904,2.22873743,3325.5,3324.0,42.63379419]
[1768665137398,2.22873743,3325.5,3324.0,6.48179419]
[1768665137599,2.22873743,3325.5,3324.0,1.83379419]
[1768665137802,0.96575302,3325.2,3324.0,1.83379419]
[1768665138003,2.22873743,3325.1,3323.8,44.90047]
[1768665138811,2.22873743,3325.1,3323.9,0.15047]
[1768665139501,2.22873743,3325.5,3324.0,0.15047]
[1768665139792,2.22873743,3325.5,3324.1,0.15046]
[1768665141708,2.22873743,3325.5,3324.2,4.651]
[1768665142106,2.18304617,3325.9,3324.2,4.651]
[1768665143110,2.18304617,3325.9,3324.4,0.15045]
[1768665144911,2.18304617,3325.9,3324.5,0.15045]
[1768665152519,0.00370232,3325.9,3325.0,0.15042]
[1768665153214,0.96575302,3326.8,3325.4,0.1504]
[1768665153518,2.33149248,3326.8,3325.5,0.1504]
[1768665154219,2.33518519,3326.8,3325.7,0.15039]
[1768665156113,2.33149248,3326.4,3324.9,0.15043]
[1768665156314,2.33149248,3326.0,3324.9,0.15043]
[1768665157315,2.33149248,3326.0,3324.9,0.15418023]
[1768665167040,0.00369271,3326.8,3325.4,0.96575302]
[1768665167240,0.00369271,3326.8,3325.4,4.635]
[1768665167441,0.00369271,3326.8,3325.5,40.8]
[1768665168343,0.00369271,3326.8,3325.6,0.1504]
[1768665170345,2.33149248,3326.3,3324.9,0.00375023]
[1768665170544,2.33149248,3326.3,3324.9,4.79318023]
[1768665170748,2.33149248,3326.3,3324.9,45.59318023]
[1768665171048,2.33149248,3326.3,3324.9,0.15418023]
[1768665171248,2.33149248,3326.3,3324.9,0.00375023]
[1768665171449,2.33149248,3326.3,3325.1,1.11617302]
[1768665172040,2.35892989,3326.7,3325.1,1.11617302]
[1768665172238,2.35892989,3326.7,3325.1,0.96575302]
[1768665172751,2.35892989,3326.7,3325.2,4.64]
[1768665173649,2.35892989,3326.7,3325.4,0.1504]
[1768665176954,2.35892989,3326.7,3325.5,0.1504]
[1768665177151,2.35892989,3326.7,3325.6,0.1504]
[1768665177857,0.00369271,3326.8,3325.7,4.643]
[1768665178058,2.3626226,3326.8,3325.7,4.643]
[1768665179460,0.00369271,3326.8,3325.8,1.11613302]
[1768665180059,0.00369271,3326.8,3325.9,0.15038]
[1768665180766,2.35892989,3327.2,3326.0,0.15038]
[1768665181562,2.35892989,3327.8,3325.8,3.27918124]
[1768665181759,2.36177545,3327.8,3325.8,2.31342822]
[1768665182259,2.36177545,3327.8,3325.9,4.647]
[1768665182459,2.36177545,3327.8,3326.4,0.15036]
[1768665183259,0.00284556,3327.8,3326.5,0.15036]
[1768665183659,0.00284556,3327.8,3326.6,40.8]
[1768665184459,0.00284556,3327.8,3327.0,0.15033]
[1768665185364,0.00284556,3327.8,3327.0,1.11431638]
[1768665187059,0.00284556,3327.8,3327.0,0.15033]
[1768665187259,0.00284556,3327.8,3327.1,0.96398638]
[1768665187460,0.96398638,3328.4,3327.1,0.96398638]
[1768665188058,0.96398638,3328.4,3327.0,0.15033]
[1768665188262,0.96398638,3328.4,3327.1,0.96398638]
[1768665188457,0.9662563,3328.4,3327.1,0.96398638]
[1768665189263,0.00226992,3328.4,3327.1,0.96398638]
[1768665189672,0.00226992,3328.4,3327.0,0.15033]
[1768665189970,0.00226992,3328.4,3327.1,0.96398638]
[1768665195076,0.9662563,3328.4,3327.1,0.96398638]
[1768665196362,0.00226992,3328.4,3327.1,1.11431638]
[1768665196571,0.00226992,3328.4,3327.3,0.96398638]
[1768665196878,0.00226992,3328.4,3327.3,0.9661159]
[1768665197378,0.00226992,3328.4,3327.5,0.96398638]
[1768665198578,0.00226992,3328.4,3327.3,1.1164359]
[1768665201872,0.00226992,3328.4,3327.5,0.96398638]
[1768665202781,0.00226992,3328.4,3327.4,4.653]
[1768665207280,0.00226992,3328.4,3327.4,5.61698638]
[1768665207677,0.00226992,3328.4,3327.5,4.658]
[1768665210880,2.32286024,3328.4,3327.3,0.15244952]
[1768665211081,0.96398638,3328.0,3327.3,0.15244952]
[1768665211271,0.96398638,3328.2,3327.3,0.15244952]
[1768665211471,2.32286024,3328.4,3327.3,0.15244952]
[1768665211673,0.96398638,3328.2,3327.3,0.15244952]
[1768665215692,2.32286024,3328.4,3327.3,0.15244952]
[1768665215879,0.96398638,3328.2,3327.3,0.15244952]
[1768665216993,0.96398638,3328.0,3327.3,0.15244952]
[1768665218085,2.32286024,3328.4,3327.3,0.00212952]
[1768665218086,0.96398638,3327.8,3327.3,0.00212952]
[1768665218292,0.96398638,3327.6,3326.8,4.666]
[1768665218480,0.96398638,3327.6,3326.6,40.95035]
[1768665218680,0.96398638,3327.8,3326.8,4.666]
[1768665219184,0.96398638,3327.8,3326.8,4.66855991]
[1768665219693,0.00226992,3328.4,3327.1,0.96398638]
[1768665219881,0.9662563,3328.4,3327.1,0.96398638]
[1768665220590,0.9662563,3328.4,3326.9,1.11432638]
[1768665220794,0.96398638,3328.2,3326.9,0.15034]
[1768665221188,0.96398638,3328.2,3327.0,4.669]
[1768665222292,0.96398638,3327.9,3327.0,4.669]
[1768665222681,0.96398638,3328.1,3327.0,4.669]
[1768665223579,3.19078349,3328.3,3327.0,4.669]
[1768665224989,3.19078349,3328.3,3327.0,4.672]
[1768665227093,3.19078349,3328.3,3327.0,4.82233]
[1768665227389,0.00226992,3328.4,3327.6,0.96398638]
[1768665227789,0.00226992,3328.4,3327.4,0.15031]
[1768665232597,0.00226992,3328.4,3327.5,4.676]
[1768665232990,2.1670123,3329.0,3327.6,0.96398638]
[1768665233189,0.35783478,3329.3,3328.0,0.96398638]
[1768665233583,0.35783478,3329.3,3328.0,1.11427638]
[1768665233992,0.10225612,3329.1,3328.0,1.11427638]
[1768665234197,0.10225612,3329.1,3328.2,0.96398638]
[1768665234392,0.10225612,3329.1,3328.4,1.11425638]
[1768665234592,0.006007,3329.4,3328.4,5.78925638]
[1768665235489,0.00854456,3329.4,3328.4,5.78925638]
[1768665235689,0.00854456,3329.4,3328.4,8.08516084]
[1768665235993,0.96398638,3329.9,3328.5,2.29590446]
[1768665236499,0.96398638,3329.9,3328.5,2.44616446]
[1768665236690,2.1670123,3330.2,3328.6,1.11424638]
[1768665236691,0.96398638,3330.1,3328.6,1.11424638]
[1768665236888,0.96398638,3329.9,3328.6,1.11424638]
[1768665237200,0.00319915,3330.1,3328.6,0.15026]
[1768665237409,0.96398638,3329.9,3328.6,0.15026]
[1768665237700,0.00319915,3330.1,3328.9,0.96398638]
[1768665237903,0.00319915,3330.1,3329.1,1.11421638]
[1768665238804,10.111,3331.4,3329.6,0.96398638]
[1768665239100,0.96398638,3331.3,3329.7,6.96690446]
[1768665239301,0.96398638,3331.0,3329.8,44.41]
[1768665239699,0.96398638,3331.0,3329.8,46.70590446]
[1768665239902,0.00212814,3331.0,3329.9,2.29590446]
[1768665240095,0.96398638,3331.5,3330.2,2.29590446]
[1768665240293,0.96398638,3331.4,3330.2,2.29590446]
[1768665240790,0.96398638,3331.3,3330.2,2.29590446]
[1768665240993,0.96777603,3331.3,3330.2,2.29590446]
[1768665241496,0.96777603,3331.3,3330.2,4.672]
[1768665242504,0.96777603,3331.3,3330.2,4.82219]
[1768665242890,2.1670123,3331.2,3330.0,0.96398638]
[1768665243206,0.96398638,3330.3,3328.9,0.96398638]
[1768665243408,0.96398638,3330.5,3329.3,0.15023]
[1768665243609,2.1670123,3330.9,3329.3,0.15023]
[1768665243806,0.96398638,3330.5,3329.3,0.15023]
[1768665244002,0.96398638,3330.5,3329.3,0.15385401]
[1768665244419,2.1670123,3330.9,3329.3,1.11784039]
[1768665244599,0.96398638,3330.8,3329.3,1.11784039]
[1768665244920,0.96398638,3331.1,3329.6,0.96398638]
[1768665245099,0.96398638,3331.1,3329.9,0.1502]
[1768665245411,0.00378965,3331.3,3329.9,4.8232]
[1768665245609,0.00378965,3331.3,3329.9,0.1502]
[1768665245812,0.00378965,3331.3,3330.0,4.673]
[1768665246402,0.00378965,3331.3,3330.0,4.8232]
[1768665247301,0.00378965,3331.3,3330.1,4.67]
[1768665247908,0.00378965,3331.3,3330.0,0.1502]
[1768665248211,0.00378965,3331.3,3330.1,4.669]
[1768665248414,2.17080195,3331.3,3330.0,0.1502]
[1768665248602,2.1670123,3331.0,3329.3,0.00362401]
[1768665248801,3.12923099,3330.7,3329.3,2.83262401]
[1768665249102,3.12923099,3330.7,3329.3,0.00362401]
[1768665250205,2.1670123,3330.6,3329.3,0.00362401]
[1768665250907,2.1670123,3330.2,3329.3,0.00362401]
[1768665251103,2.1670123,3330.2,3328.7,4.667]
[1768665251503,2.1670123,3330.2,3328.7,43.963]
[1768665251698,2.1670123,3330.2,3328.7,40.8]
[1768665252213,2.1670123,3330.2,3328.7,40.80298964]
[1768665252713,2.1670123,3330.2,3328.7,40.95323964]
[1768665252913,2.1670123,3330.2,3328.8,0.15025]
[1768665255707,2.1670123,3330.2,3328.9,4.669]
[1768665256206,2.1670123,3330.2,3328.9,4.67]
[1768665256609,2.1670123,3330.2,3328.8,0.15025]
[1768665256913,2.1670123,3330.2,3328.8,4.82025]
[1768665257521,2.1670123,3330.2,3328.8,0.15025]
[1768665257810,2.1670123,3329.8,3328.8,4.82025]
[1768665258011,2.1670123,3330.3,3328.9,0.96221869]
[1768665258605,2.1670123,3330.3,3328.9,1.11246869]
[1768665258805,2.1670123,3330.8,3328.9,0.96221869]
[1768665259317,2.1670123,3330.8,3328.8,6.96590446]
[1768665259512,2.1670123,3330.8,3328.9,4.669]
[1768665259716,2.1670123,3330.8,3329.2,0.15023]
[1768665264616,2.1670123,3330.8,3328.7,0.00298964]
[1768665264822,2.1670123,3330.8,3328.7,4.66398964]
[1768665265012,2.1670123,3330.8,3328.8,4.661]
[1768665265409,2.1670123,3330.8,3328.7,4.66398964]
[1768665266222,2.1670123,3330.8,3328.7,0.00298964]
[1768665266419,2.18353536,3330.6,3328.8,4.661]
[1768665268021,2.18353536,3330.5,3328.8,4.661]
[1768665269127,2.18353536,3330.5,3328.9,4.666]
[1768665270024,2.18353536,3330.5,3328.7,0.00298964]
[1768665270229,6.397,3330.6,3328.7,0.00298964]
[1768665270230,2.18353536,3330.3,3328.7,4.67098964]
[1768665272226,2.18353536,3330.3,3328.7,4.67398964]
[1768665272733,2.20591916,3330.2,3328.7,2.52698964]
[1768665272932,2.20591916,3330.2,3328.7,0.00298964]
[1768665273235,2.20591916,3330.2,3328.7,4.67398964]
[1768665274430,2.20591916,3330.2,3328.7,0.00298964]
[1768665276630,2.20591916,3330.1,3328.7,0.00298964]
[1768665279338,2.20591916,3329.7,3328.7,0.00298964]
[1768665280126,2.20591916,3330.0,3328.7,0.00298964]
[1768665280932,2.20591916,3329.6,3328.7,0.00298964]
[1768665282232,2.20591916,3330.1,3328.7,0.00298964]
[1768665282436,3.16934388,3330.1,3328.7,0.00298964]
[1768665283037,2.20591916,3330.0,3328.7,0.00298964]
[1768665283838,6.397,3330.2,3328.7,0.00298964]
[1768665284142,6.397,3330.2,3328.7,2.27220535]
[1768665286042,2.20591916,3330.1,3328.8,4.675]
[1768665286838,2.20591916,3330.1,3328.7,0.00298964]
[1768665287037,3.16934388,3329.9,3328.8,4.675]
[1768665287434,3.16934388,3329.9,3328.7,0.00298964]
[1768665287737,2.20591916,3329.8,3328.7,0.00298964]
[1768665292629,3.13343743,3329.5,3327.9,0.15029]
[1768665292828,2.17001271,3329.5,3328.3,4.676]
[1768665293637,2.17001271,3329.5,3328.3,4.67941632]
[1768665294534,2.17001271,3329.5,3328.3,0.00341632]
[1768665298633,2.17001271,3329.4,3328.3,0.00341632]
[1768665300334,2.17001271,3329.1,3327.9,40.95029]
[1768665300536,2.17001271,3329.1,3327.3,2.20289652]
[1768665300741,0.96342472,3328.4,3327.4,4.538]
[1768665300940,2.17001271,3328.9,3327.3,2.20289652]
[1768665301140,2.17001271,3328.9,3327.4,45.478]
[1768665301343,2.17305917,3328.9,3327.4,40.80337646]
[1768665301644,2.17305917,3328.9,3327.4,4.68137646]
[1768665301941,2.17305917,3328.9,3327.4,3.82637646]
[1768665302733,2.17305917,3328.9,3327.4,0.00337646]
[1768665302932,2.17305917,3328.9,3327.4,4.68137646]
[1768665303346,2.17305917,3328.9,3327.4,0.00337646]
[1768665303841,0.96342472,3328.5,3327.4,0.00337646]
[1768665304048,3.13343743,3328.5,3327.4,0.00337646]
[1768665304436,2.17001271,3328.5,3327.4,0.00337646]
[1768665304743,3.13343743,3328.5,3327.4,0.00337646]
[1768665305947,0.96342472,3328.1,3326.5,0.15035]
[1768665306245,2.17001271,3328.4,3326.6,4.83135]
[1768665306445,2.17001271,3328.4,3326.7,40.8]
[1768665306642,2.17001271,3328.4,3326.7,45.289]
[1768665307139,2.17001271,3328.4,3326.7,47.64547756]
[1768665307346,0.96405554,3328.3,3326.9,0.96405554]
[1768665307843,6.397,3328.8,3326.9,2.20289652]
[1768665308043,0.00304646,3328.9,3328.1,0.96405554]
[1768665308240,0.00304646,3328.9,3327.9,0.96405554]
[1768665308641,0.00304646,3328.9,3327.8,4.683]
[1768665312552,0.00304646,3328.9,3328.1,0.96405554]
[1768665313742,6.397,3329.5,3328.1,3.16695206]
[1768665313945,2.17001271,3329.9,3328.3,0.96405554]
[1768665314148,0.96405554,3329.8,3328.3,0.96405554]
[1768665314652,0.96764802,3329.8,3328.3,0.96405554]
[1768665314846,0.96405554,3329.6,3328.3,0.96405554]
[1768665316858,0.00359248,3329.8,3328.3,0.96405554]
[1768665317358,0.96764802,3329.8,3328.3,3.16695206]
[1768665318457,1.20793538,3331.0,3328.2,40.95028]
[1768665318458,2.15462691,3332.2,3329.5,2.20289652]
[1768665318754,0.27916296,3331.8,3329.6,8.02589652]
[1768665318961,0.96405554,3330.7,3329.6,2.20289652]
[1768665319152,0.96405554,3330.7,3329.7,4.675]
[1768665319353,1.4729411,3331.6,3329.7,4.675]
[1768665319552,0.00222981,3330.7,3329.7,4.67748771]
[1768665321457,0.00222981,3330.7,3329.7,0.00248771]
[1768665321658,22.46956813,3330.7,3329.7,0.00248771]
[1768665322160,22.46733832,3330.5,3329.7,0.00248771]
[1768665322561,22.46733832,3330.4,3329.7,0.00248771]
[1768665322762,22.46733832,3330.5,3329.7,0.00248771]
[1768665323163,22.46733832,3330.4,3329.7,0.00248771]
[1768665323362,22.46733832,3330.5,3329.7,0.00248771]
[1768665323860,22.46733832,3330.4,3329.7,0.00248771]
[1768665324055,22.46733832,3330.5,3329.7,0.00248771]
[1768665324453,22.46733832,3330.4,3329.7,0.00248771]
[1768665324658,22.46733832,3330.5,3329.7,0.00248771]
[1768665325167,22.46733832,3330.4,3329.7,0.00248771]
[1768665325369,22.46733832,3330.5,3329.7,0.00248771]
[1768665325859,22.46733832,3330.4,3329.7,0.00248771]
[1768665326159,22.46733832,3330.5,3329.7,0.00248771]
[1768665326762,22.46733832,3330.4,3329.7,0.00248771]
[1768665326972,22.46733832,3330.5,3329.7,0.00248771]
[1768665327468,22.46733832,3330.4,3329.7,0.00248771]
[1768665327676,22.46733832,3330.5,3329.7,0.00248771]
[1768665328074,22.46733832,3330.4,3329.7,0.00248771]
[1768665328276,22.46733832,3330.5,3329.7,0.00248771]
[1768665328769,22.46733832,3330.4,3329.7,0.00248771]
[1768665328970,22.46733832,3330.5,3329.7,0.00248771]
[1768665329376,22.46733832,3330.4,3329.7,0.00248771]
[1768665329676,22.46733832,3330.5,3329.7,3.7622819]
[1768665330077,22.46733832,3330.4,3329.7,3.7622819]
[1768665330376,22.46733832,3330.5,3329.7,3.7622819]
[1768665330576,22.46733832,3330.4,3329.7,3.7622819]
[1768665330777,22.46733832,3330.5,3329.7,3.7622819]
[1768665330978,22.46733832,3330.4,3329.7,3.7622819]
[1768665331371,22.46733832,3330.3,3329.7,3.7622819]
[1768665331574,22.46733832,3330.4,3329.7,3.7622819]
[1768665332177,0.00222981,3330.7,3329.7,3.7622819]
[1768665332178,22.46733832,3330.3,3329.7,3.7622819]
[1768665332378,22.46733832,3330.4,3329.7,3.7622819]
[1768665333077,0.00222981,3330.7,3329.7,3.7622819]
[1768665333372,22.46733832,3330.2,3329.7,3.7622819]
[1768665333879,22.46733832,3330.0,3329.7,3.7622819]
[1768665334180,22.46733832,3330.2,3329.7,0.00248771]
[1768665334575,22.46733832,3330.0,3329.7,0.00248771]
[1768665334881,22.46733832,3330.4,3329.7,0.00248771]
[1768665335264,0.00222981,3330.7,3329.7,0.00248771]
[1768665335265,22.46733832,3330.3,3329.7,0.00248771]
[1768665335577,22.46733832,3330.4,3329.7,0.00248771]
[1768665335975,22.46733832,3330.2,3329.7,0.00248771]
[1768665336280,22.46733832,3330.4,3329.7,0.00248771]
[1768665337166,0.00222981,3330.7,3329.7,0.00248771]
[1768665337167,22.46733832,3330.2,3329.7,0.00248771]
[1768665337373,22.46733832,3330.3,3329.7,0.00248771]
[1768665337871,22.46733832,3330.1,3329.7,0.00248771]
[1768665338074,22.46733832,3330.3,3329.7,0.00248771]
[1768665338473,22.46733832,3330.0,3329.4,0.15022]
[1768665338683,22.46733832,3330.4,3329.4,0.15022]
[1768665339087,22.46733832,3330.1,3329.4,0.15022]
[1768665339286,22.46733832,3330.2,3329.4,0.15022]
[1768665339478,22.46733832,3330.2,3329.4,0.15268526]
[1768665339677,22.46733832,3330.0,3329.4,0.15268526]
[1768665339985,0.9630036,3330.3,3329.4,0.15268526]
[1768665340184,23.43034192,3330.0,3329.4,0.15268526]
[1768665340373,2.28592255,3330.4,3329.4,0.15268526]
[1768665340374,23.43034192,3330.2,3329.4,0.15268526]
[1768665340574,22.46733832,3330.1,3329.9,0.9630036]
[1768665340774,22.46733832,3330.5,3329.9,0.9630036]
[1768665340986,22.46733832,3330.3,3329.4,0.15268526]
[1768665341273,22.46733832,3330.5,3329.5,0.9630036]
[1768665341685,22.46733832,3330.4,3329.5,0.9630036]
[1768665341983,22.46733832,3330.5,3329.5,0.9630036]
[1768665342875,22.46733832,3330.4,3329.4,1.11568886]
[1768665343076,0.00222981,3330.7,3329.4,1.11568886]
[1768665343077,22.46733832,3330.5,3329.4,1.11568886]
[1768665343585,22.46733832,3330.4,3329.4,1.11568886]
[1768665343885,22.46733832,3330.5,3329.4,1.11568886]
[1768665344282,22.46733832,3330.4,3329.4,1.11568886]
[1768665344489,22.46733832,3330.5,3329.4,1.11568886]
[1768665344878,22.46733832,3330.4,3329.4,1.11568886]
[1768665345075,22.46733832,3330.5,3329.4,1.11568886]
[1768665345385,22.46733832,3330.5,3329.4,3.4284262]
[1768665345584,22.46733832,3330.4,3329.4,3.4284262]
[1768665345786,22.46733832,3330.5,3329.4,3.4284262]
[1768665346384,22.46733832,3330.4,3329.4,3.4284262]
[1768665346685,22.46733832,3330.5,3329.4,3.4284262]
[1768665346989,23.43034192,3330.5,3329.4,0.15268526]
[1768665347180,22.46733832,3330.4,3329.4,0.15268526]
[1768665347381,22.46733832,3330.5,3329.4,0.15268526]
[1768665347781,22.46733832,3330.4,3329.4,0.15268526]
[1768665347985,22.46733832,3330.3,3329.4,0.15268526]
[1768665348190,22.46733832,3330.4,3329.4,0.15268526]
[1768665348684,22.46733832,3330.3,3329.4,0.15268526]
[1768665349192,22.46733832,3330.2,3329.4,0.15268526]
[1768665349392,22.46733832,3330.3,3329.4,0.15268526]
[1768665349879,0.9630036,3330.5,3329.4,0.15268526]
[1768665349880,22.46733832,3330.2,3329.4,0.15268526]
[1768665350079,0.9630036,3330.5,3329.4,0.15268526]